Cogmind - Beta 16 @@@ ROGUE MODE // 2025.10.27 @ 19:32:46 Player: GiggleBox Result: Destroyed by Y-72 Warden with Railgun Performance ------------- Evolutions (6) 3000 Regions Visited (11) 2200 Robots Destroyed (176) 880 Value Destroyed (6342) 6342 Prototype IDs (20) 400 Alien Tech Used (0) 0 Bonus (700) 700 TOTAL SCORE: 13522 Bonus ------- Follower Combat Kills 756 Friendly Fire -56 Cogmind --------- Core Integrity 0/1150 Matter 22/300 Energy 98/100 System Corruption 2% Temperature Cool (22) Movement Hovering (60) Location -4/Archives Parts ------- > --- POWER (2) -------- (None) > --- PROPULSION (6) --- Antigrav Array > --- UTILITY (8) ------ Improved Coolant Injector Advanced Signal Interpreter Centrium Medium Armor Plating Improved Corruption Screen > --- WEAPON (3) ------- (None) > --- INVENTORY (5) ---- Power Amplifier Improved Weapon Cycler Peak State ------------ > --- POWER ------------ Neutrino Core Fission-Deuterium Core > --- PROPULSION ------- Armored Medium Treads Flexi-carbon Leg Myomer-FC Exoskeleton > --- UTILITY ---------- Scrap Engine Improved Coolant Injector High-capacity Storage Unit Advanced Sensor Array Advanced Signal Interpreter Improved Transmission Jammer Force Field > --- WEAPON ----------- Hyp. KE Coil Construct/G KE Penetrator Construct/G Impact Mace > --- INVENTORY -------- Power Amplifier Energy Well Advanced Reaction Control System Rocket Array [Rating: 110] Favorites ----------- Power Cooled Deuterium Engine Engine Cooled Deuterium Engine Power Core Constructs Reactor Micro Antimatter Reactor Propulsion Aluminum Leg Treads Armored Medium Treads Leg Aluminum Leg Hover Unit Improved Antigrav System Utility Improved Medium Armor Plating Device Seismic Detector Storage Large Storage Unit Processor Improved Signal Interpreter Protection Improved Medium Armor Plating Weapon Impact Mace Energy Gun Small Laser Energy Cannon Cooled Particle Cannon Ballistic Gun Constructs Ballistic Cannon Heavy Assault Cannon Launcher Rocket Array Impact Weapon Impact Mace Build | -11 -10 -10 -8 -7 -7 -7 -5 -4 -4 -4 -4 ------- Run | Yrd Mat Sub Mat Fac Sto Rec Fac Fac Ext Cet Arc Slots Evolved 12 | . . . 4 2 . . 4 2 . . . Power 1 | . . . . . . . 1 . . . . Propulsion 4 | . . . 1 1 . . 1 1 . . . Utility 6 | . . . 2 1 . . 2 1 . . . Weapon 1 | . . . 1 . . . . . . . . Parts Attached 122 | 8 6 2 20 9 27 4 16 12 11 6 1 Power 15 | 1 . . 5 . 2 . 4 . 3 . . Engine 9 | 1 . . 3 . 2 . 3 . . . . Core 5 | . . . 2 . . . 1 . 2 . . Reactor 1 | . . . . . . . . . 1 . . Propulsion 30 | 2 1 1 5 2 9 1 . 4 3 2 . Treads 4 | . . . . . . . . 2 1 1 . Leg 23 | 2 1 1 5 2 9 1 . . 2 . . Wheel . | . . . . . . . . . . . . Hover 3 | . . . . . . . . 2 . 1 . Flight . | . . . . . . . . . . . . Utility 50 | 2 3 1 5 4 8 2 10 7 5 2 1 Device 23 | 1 1 . 1 2 5 1 5 5 2 . . Storage 4 | 1 1 . 1 . . . 1 . . . . Processor 7 | . . . . . 1 . 2 2 . 2 . Hackware . | . . . . . . . . . . . . Protection 16 | . 1 1 3 2 2 1 2 . 3 . 1 Artifact . | . . . . . . . . . . . . Weapon 27 | 3 2 . 5 3 8 1 2 1 . 2 . Energy Gun 4 | 1 . . . 2 . . . . . 1 . Energy Cannon 2 | . . . . . 1 . . 1 . . . Ballistic Gun 6 | 2 2 . 2 . . . . . . . . Ballistic Cannon 1 | . . . 1 . . . . . . . . Launcher 8 | . . . 1 1 4 . 1 . . 1 . Special Weapon . | . . . . . . . . . . . . Impact Weapon 6 | . . . 1 . 3 1 1 . . . . Slashing Weapon . | . . . . . . . . . . . . Piercing Weapon . | . . . . . . . . . . . . Special Melee Weapon . | . . . . . . . . . . . . Unidentified Prototypes 11 | . . . . . 7 1 . . . 2 1 Parts Lost 66 | . . . 2 3 12 . 18 4 9 16 2 Power 10 | . . . . 1 . . 4 1 1 2 1 Propulsion 20 | . . . 1 1 4 . 6 1 . 7 . Utility 26 | . . . 1 . 8 . 6 1 4 5 1 Weapon 10 | . . . . 1 . . 2 1 4 2 . Highest Loss Streak 16 | . . . 1 1 5 . 8 2 3 16 2 To Critical Strikes 4 | . . . . . . . 1 . . 3 . Average Backups 11 | 1 9 15 14 14 13 13 12 4 5 9 4 Power . | . 1 1 . 1 . . . . . 1 . Propulsion 1 | . . 2 1 . 1 2 . . . . . Utility 4 | . 3 8 6 4 2 4 4 2 3 6 3 Weapon 5 | . 2 4 7 7 9 6 6 1 . . . Tool/Special . | . . . . . . . . . . . . Unused Backups 18 | . 5 . 3 . 2 4 2 . . 2 . Power 2 | . 2 . . . . . . . . . . Propulsion 2 | . . . . . . 1 1 . . . . Utility 7 | . 2 . 1 . . 1 1 . . 2 . Weapon 7 | . 1 . 2 . 2 2 . . . . . Tool/Special . | . . . . . . . . . . . . Average Slot Usage (%) 85 | . 100 100 90 91 91 90 73 69 70 37 26 Engine 6 | . 14 14 6 7 7 7 1 5 1 . . Core 2 | . . . 2 . . . 6 2 5 . 1 Leg 21 | . 28 28 26 29 29 27 12 1 8 4 . Device 16 | . 12 9 15 14 13 17 18 24 23 10 6 Storage 7 | . 14 14 9 7 7 7 4 . 4 3 . Processor 1 | . . . . . . . 4 9 4 2 10 Protection 6 | . 1 4 11 15 9 7 3 . 2 5 1 Energy Gun 1 | . 9 . . . 2 . 1 . . . . Energy Cannon 1 | . . . . . . . 5 3 . . . Ballistic Gun 4 | . 18 28 3 . . . . 2 5 . . Ballistic Cannon 1 | . . . 7 6 . . . . . . . Impact Weapon 8 | . . . 7 6 19 20 7 6 3 . . Peak Build Rating 110 | 7 12 14 33 43 53 68 89 108 110 85 56 Average Rating 49 | 5 8 11 29 34 44 60 79 92 94 49 44 On Entrance 42 | . 7 12 14 33 40 51 68 66 92 85 36 Avg Prop Armor Cover (%) 9 | . . . . . . . 7 14 8 8 . Naked Turns . | . . . . . . . . . . . . Heaviest Build 98 | 12 36 30 58 62 61 52 81 47 98 81 25 Greatest Support 103 | 20 20 30 47 55 72 72 90 57 103 103 26 Greatest Overweight (x) 2 | . 1 1 1 1 1 . 2 1 1 1 . Average Overweight (x) . | . . . 1 . . . . . . . . Largest Inventory Capacity 20 | 8 15 15 15 15 15 15 20 5 20 20 5 Average Capacity 15 | 7 14 15 15 15 14 15 17 5 17 15 5 Most Carried 15 | 2 15 15 15 15 15 15 15 5 13 13 5 Average Carried 12 | 1 9 15 14 14 13 14 12 4 5 9 3 Final Capacity 20 | 8 15 15 15 15 15 15 5 5 20 5 5 Final Carried 15 | 2 15 15 15 13 15 14 5 5 13 5 2 Scrap Engine Consumption 58 | . . . . . . 9 26 11 12 . . Constructs Created 8 | . . . . . . 2 3 1 2 . . Constructs Modified 16 | . . . . . . . 8 3 5 . . Class Distribution -------------------- 77% | Mutant 6% | Scavenger-Mutant 5% | Commander-Mutant 4% | Construct 3% | Scavenger-Tank Dominant Class ---------------- Mutant | -10/Materials Mutant | -10/Subcaves Mutant | -8/Materials Mutant | -7/Factory Mutant | -7/Storage Mutant | -7/Recycling Mutant | -5/Factory Mutant | -4/Factory Mutant | -4/Extension Mutant | -4/Cetus Mutant | -4/Archives Resources | -11 -10 -10 -8 -7 -7 -7 -5 -4 -4 -4 -4 ----------- Run | Yrd Mat Sub Mat Fac Sto Rec Fac Fac Ext Cet Arc Matter Collected 3777 | 291 277 126 883 276 445 164 470 132 647 66 . Remotely . | . . . . . . . . . . . . Salvage Created 6824 | 82 447 146 1272 305 1417 325 1452 233 1072 73 . Parts 267 | 5 35 9 72 20 22 5 43 9 43 4 . Haulers Intercepted 13 | . 1 . 6 1 3 . 2 . . . . Recyclers Shooed 3 | . 1 . 1 . . . . . 1 . . Parts Field Recycled . | . . . . . . . . . . . . Retrieved Matter . | . . . . . . . . . . . . Parts Self-Destructed 13 | . . 13 . . . . . . . . . Prevented . | . . . . . . . . . . . . Parts Restored . | . . . . . . . . . . . . Kills | -11 -10 -10 -8 -7 -7 -7 -5 -4 -4 -4 -4 ------- Run | Yrd Mat Sub Mat Fac Sto Rec Fac Fac Ext Cet Arc Combat Hostiles Destroyed 124 | . 12 5 27 7 25 5 27 2 12 2 . Melee 21 | . . . 2 1 13 1 4 . . . . Guns 38 | . 12 5 10 . . . 4 . 7 . . Cannons 24 | . . . 12 4 . . 8 . . . . AOE 13 | . . . 2 . . . 5 . 4 2 . Classes Destroyed 18 | 2 7 1 4 1 2 . . . 1 . . Worker 17 | . 1 . 4 1 6 . 4 . 1 . . Builder 2 | . 1 . . . . . . . 1 . . Tunneler 2 | 1 . . . . . . . 1 . . . Hauler 13 | . 1 . 6 1 3 . 2 . . . . Recycler 6 | 1 . . 1 . . 1 1 . 2 . . Mechanic 1 | . . . 1 . . . . . . . . Operator 1 | . 1 . . . . . . . . . . Watcher 10 | . 2 . 3 . . . 2 2 1 . . Swarmer 25 | . 6 3 7 . . . 9 . . . . Grunt 49 | . 6 1 11 4 15 . 6 . 6 . . Brawler 1 | . . . . . 1 . . . . . . Duelist 4 | . . . 1 . 2 1 . . . . . Protector 2 | . . . . . 2 . . . . . . Sentry 18 | . . . 7 . 3 2 2 2 2 . . Hunter 9 | . . . 1 1 1 . 4 . 2 . . Programmer 9 | . . . . 2 1 . 6 . . . . Behemoth 2 | . . . . . . . . . 2 . . Cetus Guard 2 | . . . . . . . . . . 2 . Subdweller 3 | . . 1 . . . 2 . . . . . Best Kill Streak 8 | 2 4 3 5 4 8 1 7 1 4 2 . Combat Bots Only 7 | . 3 3 5 4 7 1 6 1 3 2 . Max Kills in Single Turn 5 | 1 2 1 2 1 1 1 5 1 2 1 . Gunslinging . | . . . . . . . . . . . . Exploded 3 | . . . 2 . . . 3 . 1 1 . Melee 1 | . . . 1 1 1 1 1 . . . . Uniques/NPCs Destroyed . | . . . . . . . . . . . . Combat | -11 -10 -10 -8 -7 -7 -7 -5 -4 -4 -4 -4 -------- Run | Yrd Mat Sub Mat Fac Sto Rec Fac Fac Ext Cet Arc Hostile Shots Fired 1212 | . 58 18 93 68 217 104 270 94 173 96 21 Missed 362 | . 16 4 21 20 72 50 68 30 46 29 6 Hits 850 | . 42 14 72 48 145 54 202 64 127 67 15 Melee 10 | . . . 1 5 4 . . . . . . Projectile 840 | . 42 14 71 43 141 54 202 64 127 67 15 Critical Strikes 33 | . 1 . 1 1 . . 10 2 7 11 . Actively Blocked 2 | . . . . . . . . . . 2 . Part Disruptions 2 | . . . . . . . 2 . . . . Damage Taken 14585 | . 444 120 762 1091 1700 313 3828 1370 2363 2186 408 Core 2252 | . 143 18 77 84 254 41 456 182 278 607 112 Absorbed by Shields 1214 | . . . 274 . 10 112 319 22 477 . . Redirected to Shielding 115 | . . . . . . . . . 13 102 . Regen/Repaired (Parts) 669 | . . . 250 . . 5 152 139 123 . . Core Remaining (%) 64 | 100 . 35 86 . . 45 54 . . . . Volleys Fired 292 | 4 49 7 68 24 7 . 49 13 67 4 . Largest 3 | 2 2 2 3 1 2 . 2 2 2 1 . Hottest 160 | 60 60 46 69 50 160 . 142 148 106 49 . Shots Fired 430 | 8 97 14 103 24 11 . 59 19 91 4 . Gun 281 | 8 97 14 55 . 8 . 14 6 79 . . Cannon 124 | . . . 46 21 2 . 43 12 . . . Launcher 25 | . . . 2 3 1 . 2 1 12 4 . Special . | . . . . . . . . . . . . Kinetic 291 | 4 66 14 101 21 . . . 6 79 . . Thermal 108 | 4 31 . . . 10 . 57 6 . . . Explosive 22 | . . . 2 . 1 . 2 1 12 4 . Electromagnetic 9 | . . . . 3 . . . 6 . . . Robot Hit Streak 14 | 1 11 10 10 7 13 . 8 9 14 8 . Robot Miss Streak 6 | 2 5 6 4 2 2 . 3 1 4 . . Penetration Max 2 | . . . 1 . . . . . 2 . . Secondary Targets 1 | . . 1 . . . . . . . . . Max Gunslinging Chain 1 | . . 1 . . . . . . . . . Shots Hit Robots 485 | 3 66 10 95 21 85 11 102 21 67 4 . Core Hits 244 | 3 31 9 46 6 16 1 55 6 57 14 . Critical Kills 11 | . . 1 . 1 3 1 2 . 3 . . Critical Parts Destroyed 61 | . . . 7 2 26 7 11 2 6 . . Critical Strikes 89 | . . 1 14 5 31 9 13 2 14 . . Destroy 16 | . . 1 . . . . 1 . 14 . . Blast 9 | . . . 7 2 . . . . . . . Smash 64 | . . . 7 3 31 9 12 2 . . . Melee Attacks 271 | . . . 25 15 120 17 81 8 5 . . Impact 271 | . . . 25 15 120 17 81 8 5 . . Slashing . | . . . . . . . . . . . . Piercing . | . . . . . . . . . . . . Sneak Attacks 30 | . . . 10 2 10 1 6 . 1 . . Combat Hostiles 2 | . . . 1 . . . 1 . . . . Follow-up Attacks 21 | . . . . . 16 1 3 1 . . . Damage Inflicted 20301 | 35 870 153 4184 1167 4501 487 4670 680 3075 479 . Guns 3187 | 35 854 153 577 . 217 . 190 115 1046 . . Cannons 4056 | . . . 2083 765 . . 918 290 . . . Explosions 3428 | . . . 115 54 . . 898 49 1857 455 . Melee 9590 | . . . 1409 348 4284 487 2664 226 172 . . Ramming 40 | . 16 . . . . . . . . 24 . Kinetic 5372 | . 633 153 2660 765 . . . 115 1046 . . Thermal 1754 | 35 221 . . . 217 . 1108 173 . . . Explosive 3374 | . . . 115 . . . 898 49 1857 455 . Electromagnetic 171 | . . . . 54 . . . 117 . . . Impact 9590 | . . . 1409 348 4284 487 2664 226 172 . . Slashing . | . . . . . . . . . . . . Piercing . | . . . . . . . . . . . . Highest Corruption 10 | . . . . 1 6 6 10 1 2 2 2 Average Corruption 3 | . . . . 1 4 6 2 1 1 2 2 Corruption Purged 1 | . . . . . 1 . . . . . . Corruption Blocked . | . . . . . . . . . . . . Effects 72 | . . . . 1 22 29 12 1 5 2 . Message Errors 15 | . . . . . 6 2 5 . 1 1 . Matter Fused 19 | . . . . 1 5 11 2 . . . . Heat Flow Errors 12 | . . . . . 2 5 2 1 2 . . Energy Discharges 11 | . . . . . 5 6 . . . . . Parts Rejected 3 | . . . . . . . 1 . 2 . . Parts Fused 1 | . . . . . 1 . . . . . . Data Loss (minor) 5 | . . . . . 1 3 1 . . . . Data Loss (major) 4 | . . . . . 1 2 . . . 1 . Alerts 1 | . . . . . 1 . . . . . . Misdirections 1 | . . . . . . . 1 . . . . Overload Shots . | . . . . . . . . . . . . Overflow Damage 4160 | . . . 873 221 1680 260 898 89 99 40 . Projectiles 227 | . . . 133 78 . . 16 . . . . Explosions 91 | . . . . 3 . . 23 18 7 40 . Melee 3842 | . . . 740 140 1680 260 859 71 92 . . Knockbacks 56 | . . . 8 10 21 4 12 . 1 . . Impact 37 | . . . 2 2 17 3 12 . 1 . . Kinetic 12 | . . . 5 7 . . . . . . . Secondary 7 | . . . 1 1 4 1 . . . . . Self-Inflicted Damage 677 | . . . . . . . 145 111 79 342 . Shots 19 | . . . . . . . 7 4 4 4 . Rammed 6 | . . . . . . . . . . 6 . Targets Rammed 12 | . 5 . . . . . . . . 7 . Kicked 6 | . 5 . . . . . . . . 1 . Crushed . | . . . . . . . . . . . . Highest Temperature 274 | . 57 . 27 40 245 213 150 199 274 . . Average Temperature 46 | . 28 . 7 8 80 101 25 81 80 . . Received Heat Transfer 3235 | . 153 9 159 261 650 102 453 81 1007 288 72 Siege Activations . | . . . . . . . . . . . . Martial Activations . | . . . . . . . . . . . . Shielding Activations . | . . . . . . . . . . . . Robots Disrupted . | . . . . . . . . . . . . Combat Hostiles . | . . . . . . . . . . . . Robots Corrupted 39 | . . . 4 2 16 4 9 2 2 . . Combat Hostiles 28 | . . . 1 2 12 4 6 2 1 . . Parts Fried 54 | . . . 6 7 20 1 14 3 3 . . Impact Corruptions 119 | . . . 13 5 53 12 31 2 3 . . Robots Melted . | . . . . . . . . . . . . Combat Hostiles . | . . . . . . . . . . . . Parts Melted 4 | . . . . . . . 4 . . . . Heat Transferred 3301 | 75 500 . . . 475 . 2066 185 . . . Parts Sabotaged . | . . . . . . . . . . . . Parts Stolen . | . . . . . . . . . . . . Parts Stripped . | . . . . . . . . . . . . Power Chain Reactions . | . . . . . . . . . . . . Alert | -11 -10 -10 -8 -7 -7 -7 -5 -4 -4 -4 -4 ------- Run | Yrd Mat Sub Mat Fac Sto Rec Fac Fac Ext Cet Arc Maximum Alert Level 1 | . . . 1 . 1 . . . . . . Low Security (%) 91 | 100 100 . 90 100 52 100 100 100 100 100 100 Level 1 8 | . . . 9 . 47 . . . . . . Level 2 . | . . . . . . . . . . . . Level 3 . | . . . . . . . . . . . . Level 4 . | . . . . . . . . . . . . Level 5 . | . . . . . . . . . . . . High Security . | . . . . . . . . . . . . Max Security . | . . . . . . . . . . . . Peak Influence 306 | 5 137 . 238 79 306 145 178 84 190 88 . Initial 103 | . . . 45 56 24 103 50 84 25 88 . Average 81 | 1 36 . 139 23 181 12 72 31 55 26 . Influence Increases 4803 | 10 376 120 868 224 1126 201 951 181 653 93 . Destroy 0b10 Robot/C 2720 | . 240 80 540 140 640 120 540 40 340 40 . Destroy 0b10 Robot/NC 275 | 10 30 . 75 10 60 5 45 15 25 . . Destroy Leader 566 | . 46 10 148 32 156 . 118 24 32 . . Allied During Kill 171 | . . . . . 124 14 . . 33 . . Successful Hack 120 | . 28 . 29 . 8 15 24 . 7 9 . Select Force Hacks 60 | . 30 . . . . 30 . . . . . Disable Machine 90 | . . . . . 60 15 15 . . . . Destroy Structure 331 | . 2 . 31 12 18 2 84 42 96 44 . Advance Influence 50 | . . . . . . . 50 . . . . Partial Spotted 45 | . . . . . . . 15 15 15 . . Lose Combat Pursuer 375 | . . 30 45 30 60 . 60 45 105 . . Influence Decreases 4803 | 10 320 88 832 295 912 468 778 302 547 251 . Entered New Map 518 | . . 28 43 68 29 164 . 89 27 70 . Time Decay 3005 | 10 320 60 619 197 493 150 598 173 346 39 . Lost Part 622 | . . . 20 30 120 . 180 40 90 142 . Lost Ally 358 | . . . . . 120 154 . . 84 . . Purge Threat 300 | . . . 150 . 150 . . . . . . Squads Dispatched 22 | . 1 . 3 2 8 . 3 3 2 . . Investigation 5 | . 1 . 1 . 1 . . 1 1 . . Extermination 7 | . . . . 1 2 . 3 1 . . . Reinforcement 7 | . . . 1 1 3 . . 1 1 . . Assault 2 | . . . . . 2 . . . . . . Garrison 1 | . . . 1 . . . . . . . . Intercept . | . . . . . . . . . . . . Searches Triggered . | . . . . . . . . . . . . Construction Impeded 1 | . . . . 1 . . . . . . . Haulers Reinforced 2 | . . . . . 2 . . . . . . Active Scanning Responses . | . . . . . . . . . . . . Cargo Convoy Interrupts . | . . . . . . . . . . . . Stealth | -11 -10 -10 -8 -7 -7 -7 -5 -4 -4 -4 -4 --------- Run | Yrd Mat Sub Mat Fac Sto Rec Fac Fac Ext Cet Arc Distress Signals 13 | . 2 . 1 1 1 1 2 1 3 1 . Communications Jammed 72 | . . . . . . . 45 4 6 17 . Distress Signals 72 | . . . . . . . 45 4 6 17 . Times Spotted 234 | . 21 7 44 13 44 9 47 13 27 5 4 Peak Tracking Total 9 | . 5 4 6 4 9 3 8 4 9 5 4 Tactical Retreats 19 | . . 1 3 2 3 1 1 3 5 . . Traps | -11 -10 -10 -8 -7 -7 -7 -5 -4 -4 -4 -4 ------- Run | Yrd Mat Sub Mat Fac Sto Rec Fac Fac Ext Cet Arc Traps Triggered 17 | . 1 . 2 5 2 . 4 2 1 . . Indirectly 2 | . . . . 2 . . . . . . . Trap Hack Attempts . | . . . . . . . . . . . . Triggered . | . . . . . . . . . . . . Disarmed . | . . . . . . . . . . . . Reprogrammed . | . . . . . . . . . . . . Reused . | . . . . . . . . . . . . Traps Extracted . | . . . . . . . . . . . . Installed . | . . . . . . . . . . . . Triggered . | . . . . . . . . . . . . Machines | -11 -10 -10 -8 -7 -7 -7 -5 -4 -4 -4 -4 ---------- Run | Yrd Mat Sub Mat Fac Sto Rec Fac Fac Ext Cet Arc Machines Disabled 6 | . . . . . 4 1 1 . . . . Max in Single Turn 1 | . . . . . 1 1 1 . . . . Garrison Access 2 | . . . 1 . . . 1 . . . . Machines Repaired . | . . . . . . . . . . . . Machines Dismantled . | . . . . . . . . . . . . Machines Sabotaged . | . . . . . . . . . . . . Overloaded Fab Kills . | . . . . . . . . . . . . Hacking | -11 -10 -10 -8 -7 -7 -7 -5 -4 -4 -4 -4 --------- Run | Yrd Mat Sub Mat Fac Sto Rec Fac Fac Ext Cet Arc Machines Accessed 56 | . 9 . 12 1 10 10 7 3 3 1 . Terminals 39 | . 8 . 8 . 10 6 1 2 3 1 . Fabricators 2 | . . . . . . . 1 1 . . . Repair Stations 4 | . . . 2 . . . 2 . . . . Recycling Units 4 | . 1 . . . . 2 1 . . . . Scanalyzers 2 | . . . 1 . . . 1 . . . . Garrison Access 3 | . . . 1 1 . . 1 . . . . Total Hacks 158 | . 27 . 35 3 18 37 20 8 8 2 . Successful 83 | . 13 . 24 . 9 26 7 1 2 1 . Failed 75 | . 14 . 11 3 9 11 13 7 6 1 . Catastrophic 11 | . . . 2 . 1 5 1 1 1 . . Database Lockouts . | . . . . . . . . . . . . Manual 56 | . 18 . 21 . 3 9 . 4 1 . . Terminals 103 | . 26 . 27 . 18 12 4 6 8 2 . Fabricators 5 | . . . . . . . 3 2 . . . Repair Stations 11 | . . . 4 . . . 7 . . . . Recycling Units 8 | . 1 . . . . 4 3 . . . . Scanalyzers 5 | . . . 3 . . . 2 . . . . Garrison Access 5 | . . . 1 3 . . 1 . . . . Terminal Hacks 49 | . 5 . 8 . 8 24 . 1 2 1 . Record 19 | . . . . . . 19 . . . . . Robot Analysis 4 | . . . 3 . . 1 . . . . . Prototype ID Bank 4 | . 3 . 1 . . . . . . . . Open Door 9 | . . . . . 5 . . 1 2 1 . Branch Access Points 1 | . . . 1 . . . . . . . . Alert Level 4 | . . . 2 . 1 1 . . . . . Unreport Threat 2 | . . . 1 . 1 . . . . . . Locate Traps 1 | . 1 . . . . . . . . . . Registered Components 1 | . . . . . . 1 . . . . . Zone Layout 2 | . 1 . . . 1 . . . . . . Release Object 2 | . . . . . . 2 . . . . . Fabricator Hacks 1 | . . . . . . . 1 . . . . Build 1 | . . . . . . . 1 . . . . Repair Station Hacks 7 | . . . 4 . . . 3 . . . . Scan Component 5 | . . . 2 . . . 3 . . . . Repair 2 | . . . 2 . . . . . . . . Recycling Unit Hacks 2 | . . . . . . 1 1 . . . . Report Inventory 1 | . . . . . . . 1 . . . . Retrieve Components 1 | . . . . . . 1 . . . . . Scanalyzer 4 | . . . 3 . . . 1 . . . . Retrieve Study 4 | . . . 3 . . . 1 . . . . Garrison Access Hacks 2 | . . . 1 . . . 1 . . . . Seal Access 2 | . . . 1 . . . 1 . . . . Unauthorized Hacks 18 | . 8 . 8 . 1 1 . . . . . Terminals 16 | . 7 . 8 . 1 . . . . . . Botnet 5 | . 1 . 3 . 1 . . . . . . Operators 1 | . 1 . . . . . . . . . . Skim 10 | . 5 . 5 . . . . . . . . Fabricators . | . . . . . . . . . . . . Repair Stations . | . . . . . . . . . . . . Recycling Units 2 | . 1 . . . . 1 . . . . . Tunnel 2 | . 1 . . . . 1 . . . . . Scanalyzers . | . . . . . . . . . . . . Garrison Access . | . . . . . . . . . . . . Data Cores Recovered 1 | . 1 . . . . . . . . . . Used 1 | . 1 . . . . . . . . . . Hacking Detections 47 | . 8 . 10 1 9 7 5 3 3 1 . Full Trace Events 2 | . . . . . . . . 1 1 . . Feedback Events . | . . . . . . . . . . . . Feedback Blocked . | . . . . . . . . . . . . Robot Schematics Acquired . | . . . . . . . . . . . . Robots Built . | . . . . . . . . . . . . Authchips . | . . . . . . . . . . . . Time . | . . . . . . . . . . . . Total Robot Build Rating . | . . . . . . . . . . . . Part Schematics Acquired . | . . . . . . . . . . . . Parts Built 2 | . . . . . . . 2 . . . . Authchips . | . . . . . . . . . . . . Time 139 | . . . . . . . 139 . . . . Total Part Build Rating 18 | . . . . . . . 18 . . . . Part Studies Acquired 3 | . . . 2 . . . 1 . . . . Parts Repaired 2 | . . . 2 . . . . . . . . Time 82 | . . . 82 . . . . . . . . Parts Recycled . | . . . . . . . . . . . . Recycled Matter . | . . . . . . . . . . . . Retrieved Matter . | . . . . . . . . . . . . Retrieved Components 9 | . . . . . . 9 . . . . . Parts Scanalyzed . | . . . . . . . . . . . . Part Schematics Acquired . | . . . . . . . . . . . . Parts Damaged . | . . . . . . . . . . . . Bothacking | -11 -10 -10 -8 -7 -7 -7 -5 -4 -4 -4 -4 ------------ Run | Yrd Mat Sub Mat Fac Sto Rec Fac Fac Ext Cet Arc Used RIF Installer . | . . . . . . . . . . . . Robots Hacked . | . . . . . . . . . . . . Non-combat . | . . . . . . . . . . . . Combat . | . . . . . . . . . . . . Robot Hacks Applied . | . . . . . . . . . . . . Relay Couplers Released 4 | . . . . 4 . . . . . . . Programmers 4 | . . . . 4 . . . . . . . Fabnet Peak Effective % . | . . . . . . . . . . . . Robots Rewired 12 | . . . . . . 6 . . 6 . . Allies Hacked . | . . . . . . . . . . . . Hacks Repelled . | . . . . . . . . . . . . Allies | -11 -10 -10 -8 -7 -7 -7 -5 -4 -4 -4 -4 -------- Run | Yrd Mat Sub Mat Fac Sto Rec Fac Fac Ext Cet Arc Total Allies 26 | . . . . . 12 6 . . 8 . . Largest Group 10 | . . . . . 10 5 . . 5 . . Highest-Rated Group 227 | . . . . . 173 84 . . 227 . . Highest-Rated Ally 159 | . . . . . 31 40 . . 159 . . Total Orders . | . . . . . . . . . . . . Ally Attacks 177 | . . . . . 105 29 . . 43 . . Total Damage 3287 | . . . . . 1432 592 . . 1263 . . Kills 23 | . . . . . 11 7 . . 5 . . Allies Corrupted . | . . . . . . . . . . . . Allies Melted . | . . . . . . . . . . . . Intel | -11 -10 -10 -8 -7 -7 -7 -5 -4 -4 -4 -4 ------- Run | Yrd Mat Sub Mat Fac Sto Rec Fac Fac Ext Cet Arc Active Infowar (turns) 9771 | 34 1221 348 2223 726 849 875 2043 476 913 63 . Sensors 1666 | . . . . . . . 620 476 570 . . Structural 694 | . . . . 694 . . . . . . . Seismic 7105 | 34 1221 348 2223 726 849 875 829 . . . . Jamming 3451 | . . . . . . . 2043 432 913 63 . Robot Analysis Total 4 | . . . 3 . . 1 . . . . . Derelict Logs Recovered 1 | . . 1 . . . . . . . . . Drone Launches . | . . . . . . . . . . . . Drone Recoveries . | . . . . . . . . . . . . Exploration | -11 -10 -10 -8 -7 -7 -7 -5 -4 -4 -4 -4 ------------- Run | Yrd Mat Sub Mat Fac Sto Rec Fac Fac Ext Cet Arc Turns Passed 11235 | 87 1321 523 2224 739 1381 1124 2224 546 913 133 20 Spaces Moved 5900 | 54 611 254 919 282 697 785 1219 486 453 111 29 Core 5 | 4 . . . . . . 1 . . . . Treads 131 | . . . . . . . . 17 107 7 . Legs 4815 | 50 611 254 919 282 697 785 694 141 346 36 . Wheels . | . . . . . . . . . . . . Hover 949 | . . . . . . . 524 328 . 68 29 Flight . | . . . . . . . . . . . . Fastest Speed 50 | 50 120 130 188 118 118 118 93 56 94 60 60 Average Speed 145 | 114 181 188 194 177 134 120 135 89 123 89 60 Slowest Speed 250 | 120 190 190 200 188 188 122 193 250 207 177 60 Overloaded Moves . | . . . . . . . . . . . . Propulsion Burnouts . | . . . . . . . . . . . . Robots Hopped . | . . . . . . . . . . . . Potential Cave-ins . | . . . . . . . . . . . . Cave-ins Triggered . | . . . . . . . . . . . . Exploration Rate (%) 51 | 5 97 17 84 11 78 98 29 13 60 59 62 Regions Visited 11 Branch Regions 6 Pre-discovered Areas 8 | . 3 2 2 . . 1 . . . . . Known Exits Taken 5 | . . 1 . 1 . . 1 1 . 1 . Unknown Exits Taken 6 | 1 1 . 1 . 1 1 . . 1 . . Scrap Searched . | . . . . . . . . . . . . Spaces Dug 58 | . . . 14 8 17 1 14 2 2 . . Terrain Destroyed 349 | . . . 34 12 18 1 66 31 120 67 . Melee 31 | . . . 3 6 3 1 14 2 2 . . Projectile 20 | . . . 11 6 2 . 1 . . . . AOE 298 | . . . 20 . 13 . 51 29 118 67 . Terrain Rammed . | . . . . . . . . . . . . Walls Destroyed . | . . . . . . . . . . . . Machines Disabled . | . . . . . . . . . . . . Actions | -11 -10 -10 -8 -7 -7 -7 -5 -4 -4 -4 -4 --------- Run | Yrd Mat Sub Mat Fac Sto Rec Fac Fac Ext Cet Arc Total 7618 | 67 727 281 1202 454 932 945 1593 562 693 130 32 Wait 689 | 1 24 13 128 108 60 45 190 33 87 . . Move 5889 | 53 610 253 918 281 696 784 1218 485 452 110 29 Hop . | . . . . . . . . . . . . Pick Up 87 | 1 21 . 14 3 23 4 12 . 8 1 . Fast Attach 49 | 7 . . 5 . 7 2 6 10 10 2 . Attach 51 | . . . 7 5 7 3 15 4 3 4 3 Detach 19 | . . . 1 . 1 5 7 3 2 . . Swap 89 | 1 6 7 16 6 28 3 16 3 3 . . Drop 78 | . 12 1 20 2 14 12 7 4 4 2 . Fire 292 | 4 49 7 68 24 7 . 49 13 67 4 . Melee 228 | . . . 25 15 89 14 73 7 5 . . Ram 1 | . . . . . . . . . . 1 . Kick 6 | . 5 . . . . . . . . 1 . Crush 5 | . . . . . . . . . . 5 . Escape Stasis 10 | . . . . 10 . . . . . . . Rewire 125 | . . . . . . 73 . . 52 . . Trap . | . . . . . . . . . . . . Miscellaneous . | . . . . . . . . . . . . Route ------- -11/Scrapyard -10/Materials (discovered 5 exits: *Mat x3 / [*Min] / [*Sub]) -10/Subcaves (discovered 2 exits: *Mat x2) -8/Materials (discovered 2 exits: *Fac x2) -7/Factory (discovered 5 exits: *Fac x3 / *Sto / Low) -7/Storage (discovered 2 exits: *Fac / *Rec) -7/Recycling -5/Factory (discovered 2 exits: *Fac x2) -4/Factory -4/Extension (discovered 2 exits: [*Res] / *Cet) -4/Cetus -4/Archives History --------- Turn | Location | Event 6 | -11/Scrapyard | Discovered new exit (range 15) 88 | -11/Scrapyard | Entered Materials 303 | -10/Materials | Build established: Mutant 452 | -10/Materials | Core integrity fell below 50% 510 | -10/Materials | Discovered new exit (range 9) 609 | -10/Materials | Discovered new exit (range 16) 750 | -10/Materials | Loaded intel: 12 trap records 754 | -10/Materials | Discovered new exit (range 5) 864 | -10/Materials | Learned 4 Recycling zone layouts 906 | -10/Materials | Identified exit to Materials 972 | -10/Materials | Learned Storage terminal intel 992 | -10/Materials | Learned location of Recycling (-7) 1023 | -10/Materials | Learned Storage emergency access door positions 1065 | -10/Materials | Learned 2 Mines zone layouts 1400 | -10/Materials | Discovered new exit (range 6) 1409 | -10/Materials | Entered Subcaves 1410 | -10/Subcaves | Identified exit to Materials 1570 | -10/Subcaves | Learned location of Zion (-6) 1570 | -10/Subcaves | Met a Zionite searching for "candidates" 1932 | -10/Subcaves | Entered Materials 1932 | -8/Materials | Evolved 4 slots: Propulsion x1, Utility x2, Weapon x1 2459 | -8/Materials | Discovered new exit (range 3) 2627 | -8/Materials | Build established: Scavenger-Mutant 3093 | -8/Materials | Build established: Mutant 3218 | -8/Materials | Discovered new exit (range 5) 3326 | -8/Materials | Learned location of 2 exits from Factory 3359 | -8/Materials | Garrison activated, responded to threat 3402 | -8/Materials | Learned Factory scanalyzer intel 3466 | -8/Materials | Learned Storage stockpile data 3520 | -8/Materials | Learned location of Extension (-4) 3635 | -8/Materials | Learned Factory security intel 3688 | -8/Materials | Learned Factory security intel 3752 | -8/Materials | Learned 4 Recycling zone layouts 3928 | -8/Materials | Repaired Hvy. Assault Cannon+ 4016 | -8/Materials | Repaired Imp. Medium Armor Plating 4156 | -8/Materials | Entered Factory 4156 | -7/Factory | Evolved 2 slots: Propulsion x1, Utility x1 4157 | -7/Factory | Identified exit to Storage 4157 | -7/Factory | Identified exit to Lower Caves 4158 | -7/Factory | Identified exit to Factory 4160 | -7/Factory | Loaded intel: 4 scanalyzer locations 4893 | -7/Factory | Discovered exit to Factory (range 15) 4895 | -7/Factory | Entered Storage 4897 | -7/Storage | Loaded intel: 15 terminal locations 5458 | -7/Storage | Met a pair of Derelict thieves 5584 | -7/Storage | Destroyed 7 combat bots 5759 | -7/Storage | Lost 5 parts (2n3u) 5768 | -7/Storage | Assisted by bots powering up and referring to "LRC-V3" 5846 | -7/Storage | Lost 3 allies 5929 | -7/Storage | Discovered exit to Factory (range 8) 6055 | -7/Storage | Build established: Commander-Mutant 6179 | -7/Storage | Found Prototype Launcher 6179 | -7/Storage | Identified Rocket Array 6182 | -7/Storage | Found Rocket Array 6255 | -7/Storage | Used back door to open Recycling access 6255 | -7/Storage | Discovered new exit (range 4) 6276 | -7/Storage | Entered Recycling 6276 | -7/Recycling | Accompanied by 5 allies 6416 | -7/Recycling | Lost 8 allies 6618 | -7/Recycling | Found Prototype Device 6618 | -7/Recycling | Identified Scrap Engine 6621 | -7/Recycling | Entered Scraplab 6645 | -7/Recycling | Build established: Mutant 6965 | -7/Recycling | Discovered new exit (range 16) 7119 | -7/Recycling | Core integrity fell below 50% 7185 | -7/Recycling | Lost 3 allies 7400 | -7/Recycling | Entered Factory 7400 | -5/Factory | Evolved 4 slots: Power x1, Propulsion x1, Utility x2 8340 | -5/Factory | Discovered new exit (range 14) 8429 | -5/Factory | Lost 3 parts (2n1u) 8763 | -5/Factory | Lost 3 parts (1p1n1u) 8798 | -5/Factory | Discovered new exit (range 9) 8888 | -5/Factory | Identified exit to Factory 9199 | -5/Factory | Build established: Construct 9348 | -5/Factory | Fabricated Enh. Nova Cannon (x2) 9473 | -5/Factory | System corruption reached 10% 9534 | -5/Factory | Lost 8 parts (3p1n2u2w) 9624 | -5/Factory | Entered another Factory area 9624 | -4/Factory | Evolved 2 slots: Propulsion x1, Utility x1 9741 | -4/Factory | Build established: Mutant 10014 | -4/Factory | Spotted B-86 Titan 10166 | -4/Factory | Discovered new exit (range 6) 10169 | -4/Factory | Identified exit to Extension 10170 | -4/Factory | Entered Extension 10325 | -4/Extension | Rescued a captive Derelict 10553 | -4/Extension | Lost 5 allies 10759 | -4/Extension | Spotted B-86 Titan 10772 | -4/Extension | Rescued A7 10820 | -4/Extension | Extracted ID and sensor layout for unrecognized location from A7's data core 10862 | -4/Extension | Lost 3 parts (1p1u1w) 10879 | -4/Extension | Destroyed B-86 Titan 10889 | -4/Extension | Spotted B-86 Titan 10902 | -4/Extension | Lost 3 parts (2u1w) 10924 | -4/Extension | Destroyed B-86 Titan 11045 | -4/Extension | Discovered new exit (range 16) 11047 | -4/Extension | Discovered new exit (range 14) 11083 | -4/Extension | Entered Cetus 11096 | -4/Cetus | Spotted Cetus Guard 11096 | -4/Cetus | Spotted Cetus Guard 11098 | -4/Cetus | Spotted Cetus Guard 11098 | -4/Cetus | Spotted Cetus Guard 11129 | -4/Cetus | Destroyed Cetus Guard 11134 | -4/Cetus | Destroyed Cetus Guard 11135 | -4/Cetus | Core integrity fell below 50% 11159 | -4/Cetus | Core integrity fell below 20% 11195 | -4/Cetus | Lost 16 parts (2p7n5u2w) 11207 | -4/Cetus | Discovered new exit (range 15) 11215 | -4/Cetus | Identified exit to Archives 11216 | -4/Cetus | Entered Archives 11236 | -4/Archives | Destroyed by Y-72 Warden with Railgun Last Messages --------------- Sealed Heavy Doors opened. 11207_ EXIT=FOUND 11215_ EXIT=IDENTIFIED: ARCHIVES LOCATION=ARCHIVES GOAL=ESCAPE 11223_ Identified Centrium Medium Armor Plating. 11230_ Neutrino Core destroyed. 11230_ Slug penetrates Archive Hub. 11230_ Archive Hub disabled. 11230_ Slug penetrates Archive Hub. 11232_ Penetrated by Slug. 11232_ Slug penetrates Archive Hub. 11232_ Archive Hub disabled. 11232_ Adv. Reaction Control System destroyed. 11233_ Penetrated by Slug. 11235_ Slug penetrates Archive Hub. 11235_ Penetrated by Slug. 11235_ Slug penetrates Archive Hub. 11236_ Penetrated by Slug. 11236_ Archive Hub disabled. Map ----- +----------------------------------------------------+ | ????????????????????????????????????????????? | | ????????????????????????????????????????????? | | ????????????????????????????????????????????? | | ????????????????????????????????????????????? | | ????????????????????????????????????????????? | | ????????????????????????????????????????????? | | ????????????????????????????????????????????? | | ????????????????????????????????????????????? | | ????????????????????????????????????????????? | | ????????????????????????????????????????????? | | ???????????????????????? ?????????????????? | | ???????????????????????? #????????????????? | | ???????????????###"#"##? #????????????????? | | ???????????????#"""""""# #????????????????? | | ???????????????#"""V"""# o #????????????????? | | ???????????????#""" """# #????????????????? | | ??????????????##"" ""# ##???????????????? | | ############### Y ####????????????? | | # Y o """"#???????????? | | # o """"#???????????? | | # """"???????????? | | #####+###"##### V"????????????? | | # #""" """"???????????? | | # #""" """"#???????????? | | # """""""o """#???????????? | | #"""""""""#"V @ ###?????????????? | | #""""""""""""" o ????????? | | #"""""""""#"""" ????? | | #"""""""""#"""" ????? | | ????#####??####Y Y############????? | | ??????????????## #"" ##???????????????? | | ???????????????# #" " #????????????????? | | ???????????????# #"""V"""#????????????????? | | ???????????????# #"""""""#????????????????? | | ???????????????# ###"#"###????????????????? | | ???????????????# ???"?"???????????????????? | | ???????????????# ?????????????????????????? | | ???????????????# ?????????????????????????? | | ???????????????? ??????????????????????????? | | ????????????????????????????????????????????? | | ????????????????????????????????????????????? | | ????????????????????????????????????????????? | | ????????????????????????????????????????????? | | ????????????????????????????????????????????? | | ????????????????????????????????????????????? | | ????????????????????????????????????????????? | | ????????????????????????????????????????????? | | | | | | | +----------------------------------------------------+ Best States ------------- Heat Dissipation 71 Coolant Potential 80 Energy Generation 35 Energy Capacity 515 Matter Stores 300 Matter Capacity 300 Sight Range 16 Robot Scan Range 16 Terrain Scan Density 10 Jamming Range 14 Power Amplification 20 EM Shielding 2 Corruption Block 15 Armor Coverage 800 Core Shielding 20 Utility Shielding 66 Evasion (%) 65 Targeting Accuracy 6 Melee Accuracy 5 Core Analysis 6 Recoil Reduction 4 Item Schematics ----------------- None Robot Schematics ------------------ None Fabricated ------------ Enh. Nova Cannon | x2 | -5/Factory | Preloaded Repaired ---------- Hvy. Assault Cannon | 61% | -8/Materials Imp. Medium Armor Plating | 35% | -8/Materials Studied --------- Hvy. Assault Cannon | -8/Materials | Hacked Titanium Leg | -8/Materials | Hacked Lrn. Proton Cannon | -5/Factory | Hacked Alien Tech Used ----------------- None Achievements -------------- Ghost 'Em Hammer Time Not So Scrappy Resistances Are Futile Scrappetite Sprinter That Tickles Throw Away The Key Challenges ------------ None Game ------ Seed DirectedShockboltFlamer Manual? 0 Play Time 02:34:20 Cumulative 194.1 hours Start 2025.10.27 @ 10:48:57 End 2025.10.27 @ 19:32:46 Sessions 1 Manual Loads 0 Difficulty Rogue Special Mode None Game No. 167 Rogue 167 Adventurer 0 Explorer 0 Win Type - Total 3 Types 2/0/0/1/0/0/0/0/0/0 Lore% 74 Gallery% 65 Achievement% 41 Wizard Run 0 Options --------- Layout 0 ASCII 0 Keyboard 1 Movement Numpad Keybinds 0 Fullscreen 1 Font 24/Terminus Map View 76x50 Zoom Use 0% Tactical HUD 1 Map Filters NONE Filters NONE Steam 1 RUN: 51c52a94-a536-451c-b1c1-5cc77b5827ba